[Event "Reykjavik Open 2025"]
[Site "Reykjavik"]
[Date "2025.04.13"]
[Round "6.29"]
[White "Ragnarsson, Dagur"]
[Black "Sleczka, Bartosz"]
[Result "1/2-1/2"]
[Annotator "ChessBase"]
[ECO "C47"]
[WhiteElo "2352"]
[BlackElo "1920"]
[PlyCount "128"]
[EventDate "2025.04.09"]
[EventType "swiss"]
[EventCountry "ISL"]
[SourceTitle "playchess.com"]
[Source "ChessBase"]
[SourceQuality "1"]
[TimeControl "40/5400+30:1800+30"]

1. e4 {[%emt 0:00:03]} e5 {[%emt 0:01:04]} 2. Nf3 {[%emt 0:00:09]} Nc6 {[%emt 0:00:24]} 3. Nc3 {[%emt 0:01:11]} Nf6 {[%emt 0:05:08]} 4. a3 {[%emt 0:00:10]} a6 {[%emt 0:13:36]} 5. d4 {[%emt 0:00:40]} exd4 {[%emt 0:09:04]} 6. Nxd4 {[%emt 0:00:25]} Nxd4 {[%emt 0:08:29]} 7. Qxd4 {[%emt 0:00:07]} d6 {[%emt 0:00:15]} 8. Bg5 {[%emt 0:01:43]} Be7 {[%emt 0:00:45]} 9. O-O-O {[%emt 0:01:52]} O-O {[%emt 0:03:37]} 10. f4 {[%emt 0:12:44]} Ne8 {[%emt 0:22:41]} 11. Bxe7 {[%emt 0:04:11]} Qxe7 {[%emt 0:00:05]} 12. Nd5 {[%emt 0:00:09]} Qd8 {[%emt 0:00:17]} 13. Be2 {[%emt 0:11:35]} b5 {[%emt 0:10:36]} 14. g4 {[%emt 0:03:14]} c6 {[%emt 0:03:42]} 15. Ne3 {[%emt 0:03:01]} Qa5 {[%emt 0:04:16]} 16. Rhg1 {[%emt 0:12:33]} Rb8 {[%emt 0:02:05]} 17. Rg3 {[%emt 0:01:36]} c5 {[%emt 0:03:16]} 18. Qd3 {[%emt 0:00:24]} c4 {[%emt 0:02:34]} 19. Qd4 {[%emt 0:01:40]} Qb6 {[%emt 0:00:17]} 20. Qc3 {[%emt 0:10:24]} f6 {[%emt 0:06:37]} 21. h4 {[%emt 0:07:47]} Rf7 {[%emt 0:01:31]} 22. g5 {[%emt 0:06:30]} fxg5 {[%emt 0:00:23]} 23. Bh5 {[%emt 0:01:36]} g6 {[%emt 0:00:26]} 24. Rxg5 {[%emt 0:01:50]} Rg7 {[%emt 0:00:05]} 25. Bf3 {[%emt 0:01:49]} Be6 {[%emt 0:01:11]} 26. h5 {[%emt 0:00:48]} b4 {[%emt 0:00:30]} 27. axb4 {[%emt 0:00:19]} Qxb4 {[%emt 0:00:04]} 28. Qxb4 {[%emt 0:04:21]} Rxb4 {[%emt 0:00:03]} 29. hxg6 {[%emt 0:00:53]} Rxg6 {[%emt 0:01:04]} 30. Rdg1 {[%emt 0:00:30]} Rxg5 {[%emt 0:00:43]} 31. Rxg5+ {[%emt 0:00:04]} Kf8 {[%emt 0:00:13]} 32. Ra5 {[%emt 0:02:18]} Nc7 {[%emt 0:00:13]} 33. c3 {[%emt 0:03:21]} Rb5 {[%emt 0:00:09]} 34. Ra4 {[%emt 0:00:04]} Rc5 {[%emt 0:00:08]} 35. Be2 {[%emt 0:02:16]} d5 {[%emt 0:01:23]} 36. exd5 {[%emt 0:00:06]} Nxd5 {[%emt 0:00:58]} 37. Nxd5 {[%emt 0:02:25]} Bxd5 {[%emt 0:00:06]} 38. Rxa6 {[%emt 0:00:04]} Be4 {[%emt 0:00:24]} 39. Kd2 {[%emt 0:01:57]} Kg7 {[%emt 0:00:59]} 40. Ke3 {[%emt 0:01:00]} Bc2 {[%emt 0:00:34]} 41. Rb6 {[%emt 0:31:52]} h5 {[%emt 0:02:53]} 42. Bf3 {[%emt 0:00:00]} h4 {[%emt 0:08:37]} 43. Rc6 {[%emt 0:00:00]} Rb5 {[%emt 0:11:36]} 44. Rxc4 {[%emt 0:00:00]} Rxb2 {[%emt 0:00:06]} 45. Rc7+ {[%emt 0:00:00]} Kf6 {[%emt 0:00:35]} 46. Rc6+ {[%emt 0:00:00]} Kg7 {[%emt 0:00:08]} 47. Rc5 {[%emt 0:00:00]} Bg6 {[%emt 0:04:26]} 48. f5 {[%emt 0:00:00]} Bf7 {[%emt 0:02:37]} 49. Kf4 {[%emt 0:00:00]} h3 {[%emt 0:01:05]} 50. Kg3 {[%emt 0:00:00]} h2 {[%emt 0:00:06]} 51. Bg2 {[%emt 0:00:00]} Kf6 {[%emt 0:00:52]} 52. Kxh2 {[%emt 0:00:00]} Rf2 {[%emt 0:00:21]} 53. Kg3 {[%emt 0:00:00]} Rxf5 {[%emt 0:00:06]} 54. Rc6+ {[%emt 0:00:00]} Ke5 {[%emt 0:01:01]} 55. Rc5+ {[%emt 0:00:00]} Kf6 {[%emt 0:00:23]} 56. Rc7 {[%emt 0:00:00]} Ke5 {[%emt 0:01:12]} 57. Bh3 {[%emt 0:00:00]} Rf6 {[%emt 0:00:35]} 58. Re7+ {[%emt 0:05:03]} Kd6 {[%emt 0:00:34]} 59. Re3 {[%emt 0:00:11]} Kc5 {[%emt 0:01:18]} 60. Kh4 {[%emt 0:00:04]} Bd5 {[%emt 0:00:57]} 61. Bg4 {[%emt 0:00:19]} Kc4 {[%emt 0:00:42]} 62. Be2+ {[%emt 0:00:06]} Kc5 {[%emt 0:00:11]} 63. Kg5 {[%emt 0:00:05]} Re6 {[%emt 0:00:31]} 64. Rxe6 {[%emt 0:01:02]} Bxe6 {[%emt 0:00:06]} 1/2-1/2

[Event "Reykjavik Open 2025"]
[Site "Reykjavik"]
[Date "2025.04.13"]
[Round "6.30"]
[White "Cramling Bellon, Anna"]
[Black "Dembele, Marcel"]
[Result "1-0"]
[Annotator "NA"]
[ECO "E73"]
[WhiteElo "2046"]
[BlackElo "1837"]
[PlyCount "45"]
[EventDate "2025.04.09"]
[EventType "swiss"]
[EventCountry "ISL"]
[SourceTitle "playchess.com"]
[Source "ChessBase"]
[SourceQuality "1"]
[TimeControl "40/5400+30:1800+30"]

1. d4 {[%emt 0:00:09]} Nf6 {[%emt 0:00:56]} 2. c4 {[%emt 0:00:07]} g6 {[%emt 0:00:16]} 3. Nc3 {[%emt 0:00:04]} Bg7 {[%emt 0:00:09]} 4. e4 {[%emt 0:00:03]} d6 {[%emt 0:00:07]} 5. Be2 {[%emt 0:00:29]} O-O {[%emt 0:00:55]} 6. Be3 {[%emt 0:00:04]} e5 {[%emt 0:03:09]} 7. d5 {[%emt 0:01:53]} Na6 {[%emt 0:01:36]} 8. g4 {[%emt 0:08:50]} Nc5 {[%emt 0:02:35]} 9. f3 {[%emt 0:00:45]} a5 {[%emt 0:03:15]} 10. Nh3 {[%emt 0:03:13]} h5 {[%emt 0:08:25]} 11. Nf2 {[%emt 0:01:01]} c6 {[%emt 0:05:39]} 12. Qd2 {[%emt 0:04:01]} cxd5 {[%emt 0:04:16]} 13. cxd5 {[%emt 0:00:40]} b5 {[%emt 0:04:52]} 14. Nxb5 {[%emt 0:15:52]} hxg4 {[%emt 0:00:31]} 15. Bxc5 {[%emt 0:00:38]} dxc5 {[%emt 0:00:17]} 16. fxg4 {[%emt 0:00:12]} Qb6 {[%emt 0:07:01]} 17. a4 {[%emt 0:02:24]} Ba6 {[%emt 0:04:12]} 18. h4 {[%emt 0:04:56]} Nh7 {[%emt 0:18:59]} 19. g5 {[%emt 0:09:51]} f5 {[%emt 0:01:33]} 20. d6 {[%emt 0:03:33]} Bb7 {[%emt 0:21:26]} 21. h5 {[%emt 0:04:37]} Kf7 {[%emt 0:09:44]} 22. hxg6+ {[%emt 0:00:34]} Kxg6 {[%emt 0:00:22]} 23. Bh5# {[%emt 0:00:07]} 1-0

[Event "Reykjavik Open 2025"]
[Site "Reykjavik"]
[Date "2025.04.13"]
[Round "6.31"]
[White "Williams, Simon K"]
[Black "Priansh Das"]
[Result "1/2-1/2"]
[Annotator "ChessBase"]
[ECO "A48"]
[WhiteElo "2451"]
[BlackElo "2262"]
[PlyCount "50"]
[EventDate "2025.04.09"]
[EventType "swiss"]
[EventCountry "ISL"]
[SourceTitle "playchess.com"]
[Source "ChessBase"]
[SourceQuality "1"]
[TimeControl "40/5400+30:1800+30"]

1. d4 {[%emt 0:00:04]} Nf6 {[%emt 0:00:06]} 2. Bg5 {[%emt 0:00:16]} g6 {[%emt 0:00:21]} 3. Nf3 {[%emt 0:03:17]} Bg7 {[%emt 0:00:05]} 4. Nbd2 {[%emt 0:00:35]} d6 {[%emt 0:00:52]} 5. c3 {[%emt 0:00:34]} h6 {[%emt 0:01:18]} 6. Bh4 {[%emt 0:01:31]} O-O {[%emt 0:01:24]} 7. e3 {[%emt 0:06:13]} Qe8 {[%emt 0:03:35]} 8. Bc4 {[%emt 0:28:47]} b5 {[%emt 0:15:43]} 9. Bb3 {[%emt 0:05:21]} Bb7 {[%emt 0:03:12]} 10. a4 {[%emt 0:02:55]} a6 {[%emt 0:00:40]} 11. O-O {[%emt 0:01:58]} e5 {[%emt 0:05:37]} 12. axb5 {[%emt 0:01:54]} axb5 {[%emt 0:00:22]} 13. Rxa8 {[%emt 0:00:05]} Bxa8 {[%emt 0:00:05]} 14. dxe5 {[%emt 0:00:40]} dxe5 {[%emt 0:00:07]} 15. Bxf6 {[%emt 0:00:51]} Bxf6 {[%emt 0:00:15]} 16. Qe2 {[%emt 0:00:28]} c5 {[%emt 0:01:50]} 17. Ra1 {[%emt 0:00:44]} Bb7 {[%emt 0:02:54]} 18. e4 {[%emt 0:02:28]} c4 {[%emt 0:01:36]} 19. Bc2 {[%emt 0:02:35]} Qc6 {[%emt 0:03:42]} 20. Nf1 {[%emt 0:02:45]} Na6 {[%emt 0:06:47]} 21. Ne3 {[%emt 0:00:15]} Qe6 {[%emt 0:03:21]} 22. Nd5 {[%emt 0:09:22]} Bg7 {[%emt 0:04:35]} 23. Qe3 {[%emt 0:03:34]} Bxd5 {[%emt 0:06:34]} 24. exd5 {[%emt 0:00:04]} Qd6 {[%emt 0:00:09]} 25. Ra5 {[%emt 0:01:48]} Nc7 {[%emt 0:01:57]} 1/2-1/2

[Event "Reykjavik Open 2025"]
[Site "Reykjavik"]
[Date "2025.04.13"]
[Round "6.32"]
[White "Kavutskiy, Kostya"]
[Black "Muench, Robert"]
[Result "1-0"]
[Annotator "ChessBase"]
[ECO "B27"]
[WhiteElo "2351"]
[BlackElo "2027"]
[PlyCount "57"]
[EventDate "2025.04.09"]
[EventType "swiss"]
[EventCountry "ISL"]
[SourceTitle "playchess.com"]
[Source "ChessBase"]
[SourceQuality "1"]
[TimeControl "40/5400+30:1800+30"]

1. e4 {[%emt 0:00:21]} c5 {[%emt 0:00:08]} 2. Nf3 {[%emt 0:00:15]} g6 {[%emt 0:00:28]} 3. c3 {[%emt 0:00:45]} d5 {[%emt 0:01:08]} 4. e5 {[%emt 0:00:39]} Nc6 {[%emt 0:02:01]} 5. Bb5 {[%emt 0:00:46]} Qb6 {[%emt 0:00:21]} 6. Qe2 {[%emt 0:03:15]} Bg4 {[%emt 0:03:08]} 7. O-O {[%emt 0:01:03]} Bxf3 {[%emt 0:01:39]} 8. Bxc6+ {[%emt 0:00:12]} Qxc6 {[%emt 0:01:22]} 9. Qxf3 {[%emt 0:00:11]} d4 {[%emt 0:00:23]} 10. Qxc6+ {[%emt 0:07:44]} bxc6 {[%emt 0:00:20]} 11. d3 {[%emt 0:00:39]} Bg7 {[%emt 0:21:18]} 12. Re1 {[%emt 0:05:33]} f6 {[%emt 0:02:13]} 13. e6 {[%emt 0:09:11]} dxc3 {[%emt 0:11:43]} 14. Nxc3 {[%emt 0:00:32]} Rd8 {[%emt 0:00:02]} 15. Be3 {[%emt 0:01:49]} Rxd3 {[%emt 0:00:18]} 16. Rad1 {[%emt 0:03:57]} c4 {[%emt 0:00:30]} 17. Bxa7 {[%emt 0:00:49]} Nh6 {[%emt 0:02:41]} 18. Rxd3 {[%emt 0:00:52]} cxd3 {[%emt 0:00:04]} 19. Rd1 {[%emt 0:00:28]} O-O {[%emt 0:01:11]} 20. Rxd3 {[%emt 0:01:19]} Rc8 {[%emt 0:01:53]} 21. Rd7 {[%emt 0:01:00]} Bf8 {[%emt 0:00:03]} 22. a4 {[%emt 0:05:59]} Nf5 {[%emt 0:00:45]} 23. Ne4 {[%emt 0:02:47]} c5 {[%emt 0:00:36]} 24. Nxc5 {[%emt 0:02:14]} Ng7 {[%emt 0:00:08]} 25. g3 {[%emt 0:01:34]} Rc6 {[%emt 0:00:10]} 26. b4 {[%emt 0:01:21]} Nxe6 {[%emt 0:00:04]} 27. Nxe6 {[%emt 0:01:11]} Rxe6 {[%emt 0:00:04]} 28. Be3 {[%emt 0:01:16]} Ra6 {[%emt 0:01:11]} 29. Ra7 {[%emt 0:01:26]} 1-0

[Event "Reykjavik Open 2025"]
[Site "Reykjavik"]
[Date "2025.04.13"]
[Round "6.33"]
[White "Benavente, Christian"]
[Black "Petersen, Marcel"]
[Result "0-1"]
[Annotator "ChessBase"]
[ECO "D30"]
[WhiteElo "1938"]
[BlackElo "2185"]
[PlyCount "56"]
[EventDate "2025.04.09"]
[EventType "swiss"]
[EventCountry "ISL"]
[SourceTitle "playchess.com"]
[Source "ChessBase"]
[SourceQuality "1"]
[TimeControl "40/5400+30:1800+30"]

1. d4 {[%emt 0:00:02]} Nf6 {[%emt 0:00:06]} 2. Nf3 {[%emt 0:04:54]} d5 {[%emt 0:00:14]} 3. c4 {[%emt 0:00:30]} e6 {[%emt 0:00:39]} 4. Bf4 {[%emt 0:03:04]} Bb4+ {[%emt 0:05:23]} 5. Nbd2 {[%emt 0:01:19]} O-O {[%emt 0:01:14]} 6. e3 {[%emt 0:00:50]} c5 {[%emt 0:03:03]} 7. dxc5 {[%emt 0:06:24]} Bxc5 {[%emt 0:01:03]} 8. Be2 {[%emt 0:04:09]} Nc6 {[%emt 0:01:07]} 9. O-O {[%emt 0:00:59]} b6 {[%emt 0:04:54]} 10. Qc2 {[%emt 0:05:54]} Bb7 {[%emt 0:02:17]} 11. Rfd1 {[%emt 0:04:01]} Qe8 {[%emt 0:03:37]} 12. a3 {[%emt 0:17:05]} Rc8 {[%emt 0:02:30]} 13. Rac1 {[%emt 0:08:21]} a5 {[%emt 0:09:07]} 14. cxd5 {[%emt 0:10:39]} Nxd5 {[%emt 0:01:38]} 15. Ng5 {[%emt 0:06:48]} f5 {[%emt 0:01:58]} 16. Ndf3 {[%emt 0:03:51]} Rd8 {[%emt 0:11:56]} 17. Nxe6 {[%emt 0:09:14]} Qxe6 {[%emt 0:00:24]} 18. Ng5 {[%emt 0:00:05]} Qg6 {[%emt 0:01:39]} 19. Qb3 {[%emt 0:01:32]} Nce7 {[%emt 0:01:34]} 20. Rxc5 {[%emt 0:02:46]} bxc5 {[%emt 0:00:07]} 21. Qxb7 {[%emt 0:00:19]} Nxf4 {[%emt 0:07:54]} 22. exf4 {[%emt 0:04:33]} Rxd1+ {[%emt 0:05:14]} 23. Bxd1 {[%emt 0:00:02]} h6 {[%emt 0:00:11]} 24. Bb3+ {[%emt 0:03:10]} Kh8 {[%emt 0:00:06]} 25. Nf3 {[%emt 0:00:44]} Qd6 {[%emt 0:01:07]} 26. Ne5 {[%emt 0:00:44]} Kh7 {[%emt 0:00:09]} 27. h4 {[%emt 0:01:05]} Rb8 {[%emt 0:01:09]} 28. Qf3 {[%emt 0:00:07]} Ng6 {[%emt 0:01:07]} 0-1

[Event "Reykjavik Open 2025"]
[Site "Reykjavik"]
[Date "2025.04.13"]
[Round "6.34"]
[White "Donath, Simon"]
[Black "Saine, Zachary"]
[Result "0-1"]
[Annotator "NA"]
[ECO "C47"]
[WhiteElo "1761"]
[BlackElo "2019"]
[PlyCount "52"]
[EventDate "2025.04.09"]
[EventType "swiss"]
[EventCountry "ISL"]
[SourceTitle "playchess.com"]
[Source "ChessBase"]
[SourceQuality "1"]
[TimeControl "40/5400+30:1800+30"]

1. e4 {[%emt 0:00:03]} e5 {[%emt 0:02:39]} 2. Nf3 {[%emt 0:00:07]} Nc6 {[%emt 0:00:06]} 3. d4 {[%emt 0:00:04]} exd4 {[%emt 0:00:04]} 4. Nxd4 {[%emt 0:00:06]} Nf6 {[%emt 0:00:05]} 5. Nc3 {[%emt 0:00:06]} Bb4 {[%emt 0:00:14]} 6. Nxc6 {[%emt 0:00:08]} bxc6 {[%emt 0:00:05]} 7. Bd3 {[%emt 0:00:08]} d6 {[%emt 0:01:05]} 8. Bd2 {[%emt 0:02:24]} Nd7 {[%emt 0:01:14]} 9. Qg4 {[%emt 0:02:21]} O-O {[%emt 0:10:39]} 10. O-O {[%emt 0:03:19]} Ne5 {[%emt 0:03:22]} 11. Qg3 {[%emt 0:00:16]} Nxd3 {[%emt 0:00:59]} 12. cxd3 {[%emt 0:01:06]} Qf6 {[%emt 0:08:27]} 13. f4 {[%emt 0:05:08]} Ba6 {[%emt 0:20:17]} 14. Rf3 {[%emt 0:03:06]} Rab8 {[%emt 0:07:20]} 15. f5 {[%emt 0:02:55]} Bc5+ {[%emt 0:01:01]} 16. Kh1 {[%emt 0:02:59]} Rxb2 {[%emt 0:01:40]} 17. Bc1 {[%emt 0:02:57]} Rc2 {[%emt 0:06:56]} 18. d4 {[%emt 0:01:48]} Bxd4 {[%emt 0:07:58]} 19. Bg5 {[%emt 0:00:26]} Qe5 {[%emt 0:00:24]} 20. Bf4 {[%emt 0:00:32]} Qa5 {[%emt 0:07:41]} 21. e5 {[%emt 0:03:20]} Bxe5 {[%emt 0:00:46]} 22. Bxe5 {[%emt 0:01:58]} Qxe5 {[%emt 0:00:11]} 23. Qh3 {[%emt 0:00:17]} Re8 {[%emt 0:03:57]} 24. f6 {[%emt 0:00:35]} Qe1+ {[%emt 0:01:45]} 25. Rf1 {[%emt 0:00:07]} Bxf1 {[%emt 0:00:12]} 26. Rxe1 {[%emt 0:00:22]} Bxg2+ {[%emt 0:00:05]} 0-1

[Event "Reykjavik Open 2025"]
[Site "Reykjavik"]
[Date "2025.04.13"]
[Round "6.36"]
[White "Bailet, Pierre"]
[Black "Ragnarsson, Johann"]
[Result "1-0"]
[Annotator "ChessBase"]
[ECO "B11"]
[WhiteElo "2495"]
[BlackElo "1908"]
[PlyCount "57"]
[EventDate "2025.04.09"]
[EventType "swiss"]
[EventCountry "ISL"]
[SourceTitle "playchess.com"]
[Source "ChessBase"]
[SourceQuality "1"]
[TimeControl "40/5400+30:1800+30"]

1. e4 {[%emt 0:00:53]} c6 {[%emt 0:00:06]} 2. Nf3 {[%emt 0:00:18]} d5 {[%emt 0:00:10]} 3. Nc3 {[%emt 0:00:12]} Bg4 {[%emt 0:00:25]} 4. h3 {[%emt 0:00:21]} Bxf3 {[%emt 0:00:08]} 5. Qxf3 {[%emt 0:00:10]} e6 {[%emt 0:00:54]} 6. Be2 {[%emt 0:01:02]} Nf6 {[%emt 0:01:35]} 7. O-O {[%emt 0:01:33]} Nxe4 {[%emt 0:03:14]} 8. Nxe4 {[%emt 0:00:16]} dxe4 {[%emt 0:00:06]} 9. Qxe4 {[%emt 0:00:14]} Qd5 {[%emt 0:01:51]} 10. Qa4 {[%emt 0:04:06]} Nd7 {[%emt 0:06:14]} 11. Bf3 {[%emt 0:05:40]} Nb6 {[%emt 0:08:35]} 12. Qb3 {[%emt 0:10:19]} Qxb3 {[%emt 0:02:13]} 13. axb3 {[%emt 0:00:08]} Bd6 {[%emt 0:04:30]} 14. d4 {[%emt 0:03:42]} Nd5 {[%emt 0:06:30]} 15. Bd2 {[%emt 0:05:34]} O-O {[%emt 0:14:06]} 16. c4 {[%emt 0:05:09]} Nf6 {[%emt 0:00:10]} 17. b4 {[%emt 0:04:18]} a6 {[%emt 0:09:32]} 18. Bc3 {[%emt 0:02:11]} Rfe8 {[%emt 0:00:11]} 19. Rfd1 {[%emt 0:01:38]} e5 {[%emt 0:03:19]} 20. dxe5 {[%emt 0:22:44]} Bxe5 {[%emt 0:00:09]} 21. Bxe5 {[%emt 0:00:04]} Rxe5 {[%emt 0:00:09]} 22. b5 {[%emt 0:00:04]} Rc5 {[%emt 0:01:46]} 23. bxc6 {[%emt 0:00:58]} bxc6 {[%emt 0:00:11]} 24. Rxa6 {[%emt 0:00:17]} Rc8 {[%emt 0:03:58]} 25. Rxc6 {[%emt 0:01:11]} R5xc6 {[%emt 0:01:02]} 26. Bxc6 {[%emt 0:00:11]} Kf8 {[%emt 0:00:08]} 27. Bb5 {[%emt 0:00:53]} Ne4 {[%emt 0:00:09]} 28. Rd4 {[%emt 0:01:17]} Nc5 {[%emt 0:00:23]} 29. b4 {[%emt 0:01:52]} 1-0

[Event "Reykjavik Open 2025"]
[Site "Reykjavik"]
[Date "2025.04.13"]
[Round "6.37"]
[White "Niermann, Tristan"]
[Black "Allard, Thomas"]
[Result "1/2-1/2"]
[Annotator "ChessBase"]
[ECO "A37"]
[WhiteElo "2427"]
[BlackElo "2053"]
[PlyCount "118"]
[EventDate "2025.04.09"]
[EventType "swiss"]
[EventCountry "ISL"]
[SourceTitle "playchess.com"]
[Source "ChessBase"]
[SourceQuality "1"]
[TimeControl "40/5400+30:1800+30"]

1. c4 {[%emt 0:00:03]} c5 {[%emt 0:00:07]} 2. g3 {[%emt 0:00:05]} g6 {[%emt 0:00:05]} 3. Bg2 {[%emt 0:00:04]} Bg7 {[%emt 0:00:06]} 4. Nc3 {[%emt 0:00:05]} Nc6 {[%emt 0:00:04]} 5. Nf3 {[%emt 0:00:04]} e5 {[%emt 0:00:24]} 6. a3 {[%emt 0:00:08]} a5 {[%emt 0:00:12]} 7. d3 {[%emt 0:00:55]} d6 {[%emt 0:00:18]} 8. Nd2 {[%emt 0:00:46]} Nge7 {[%emt 0:17:45]} 9. Nf1 {[%emt 0:00:11]} O-O {[%emt 0:00:04]} 10. Ne3 {[%emt 0:00:31]} Rb8 {[%emt 0:00:03]} 11. Rb1 {[%emt 0:03:23]} Nd4 {[%emt 0:27:37]} 12. b4 {[%emt 0:09:26]} axb4 {[%emt 0:01:56]} 13. axb4 {[%emt 0:00:37]} cxb4 {[%emt 0:00:17]} 14. Rxb4 {[%emt 0:06:14]} Qa5 {[%emt 0:00:37]} 15. Ned5 {[%emt 0:02:21]} Nec6 {[%emt 0:05:51]} 16. Ra4 {[%emt 0:06:29]} Qd8 {[%emt 0:01:32]} 17. Ba3 {[%emt 0:18:20]} Be6 {[%emt 0:07:52]} 18. Qc1 {[%emt 0:09:49]} Nb3 {[%emt 0:09:33]} 19. Qb2 {[%emt 0:03:29]} Nc5 {[%emt 0:00:16]} 20. Bxc5 {[%emt 0:00:17]} dxc5 {[%emt 0:00:02]} 21. Qb5 {[%emt 0:03:57]} Qg5 {[%emt 0:18:20]} 22. O-O {[%emt 0:03:24]} f5 {[%emt 0:00:11]} 23. Qxc5 {[%emt 0:01:23]} Kh8 {[%emt 0:05:18]} 24. e3 {[%emt 0:01:01]} h5 {[%emt 0:01:18]} 25. Rb1 {[%emt 0:05:48]} h4 {[%emt 0:00:22]} 26. Nb5 {[%emt 0:01:12]} hxg3 {[%emt 0:00:20]} 27. hxg3 {[%emt 0:00:05]} f4 {[%emt 0:00:14]} 28. Ndc7 {[%emt 0:07:07]} Bf5 {[%emt 0:01:52]} 29. exf4 {[%emt 0:00:12]} exf4 {[%emt 0:00:27]} 30. Ne6 {[%emt 0:00:37]} Qg4 {[%emt 0:00:47]} 31. Nxf4 {[%emt 0:05:35]} Ne5 {[%emt 0:01:04]} 32. Qe3 {[%emt 0:04:50]} g5 {[%emt 0:00:46]} 33. c5 {[%emt 0:00:43]} gxf4 {[%emt 0:00:21]} 34. Rxf4 {[%emt 0:00:06]} Qg6 {[%emt 0:00:28]} 35. Nd6 {[%emt 0:01:29]} Ng4 {[%emt 0:00:29]} 36. Nxf5 {[%emt 0:03:32]} Rxf5 {[%emt 0:00:09]} 37. Qe4 {[%emt 0:01:07]} Rg5 {[%emt 0:00:42]} 38. c6 {[%emt 0:02:06]} Qxe4 {[%emt 0:01:01]} 39. Bxe4 {[%emt 0:00:15]} Be5 {[%emt 0:00:19]} 40. Rf7 {[%emt 0:01:08]} bxc6 {[%emt 0:00:39]} 41. Rxb8+ {[%emt 0:04:48]} Bxb8 {[%emt 0:00:30]} 42. Bxc6 {[%emt 0:00:25]} Ne5 {[%emt 0:12:23]} 43. Rf8+ {[%emt 0:00:16]} Rg8 {[%emt 0:00:05]} 44. Rxg8+ {[%emt 0:00:07]} Kxg8 {[%emt 0:00:01]} 45. Be4 {[%emt 0:00:10]} Ba7 {[%emt 0:00:43]} 46. Kg2 {[%emt 0:00:09]} Kg7 {[%emt 0:04:24]} 47. f4 {[%emt 0:00:07]} Nf7 {[%emt 0:02:29]} 48. g4 {[%emt 0:00:26]} Kf6 {[%emt 0:01:42]} 49. Kf3 {[%emt 0:00:23]} Bd4 {[%emt 0:01:36]} 50. Bd5 {[%emt 0:00:29]} Nd6 {[%emt 0:00:33]} 51. g5+ {[%emt 0:00:15]} Kg7 {[%emt 0:03:19]} 52. Kg4 {[%emt 0:00:31]} Bb2 {[%emt 0:01:14]} 53. Be6 {[%emt 0:00:30]} Bd4 {[%emt 0:01:05]} 54. f5 {[%emt 0:00:52]} Bb2 {[%emt 0:00:54]} 55. Kf4 {[%emt 0:00:24]} Bd4 {[%emt 0:00:20]} 56. f6+ {[%emt 0:01:26]} Bxf6 {[%emt 0:02:04]} 57. gxf6+ {[%emt 0:00:05]} Kxf6 {[%emt 0:00:01]} 58. d4 {[%emt 0:00:10]} Kxe6 {[%emt 0:00:07]} 59. d5+ {[%emt 0:00:02]} Kxd5 {[%emt 0:00:09]} 1/2-1/2

[Event "Reykjavik Open 2025"]
[Site "Reykjavik"]
[Date "2025.04.13"]
[Round "6.38"]
[White "Fantinel, Thibault"]
[Black "Roubert, Emile"]
[Result "1-0"]
[Annotator "ChessBase"]
[ECO "C79"]
[WhiteElo "2411"]
[BlackElo "2050"]
[PlyCount "93"]
[EventDate "2025.04.09"]
[EventType "swiss"]
[EventCountry "ISL"]
[SourceTitle "playchess.com"]
[Source "ChessBase"]
[SourceQuality "1"]
[TimeControl "40/5400+30:1800+30"]

1. e4 {[%emt 0:00:03]} e5 {[%emt 0:00:05]} 2. Nf3 {[%emt 0:00:08]} Nc6 {[%emt 0:00:05]} 3. Bb5 {[%emt 0:00:04]} a6 {[%emt 0:00:06]} 4. Ba4 {[%emt 0:00:04]} Nf6 {[%emt 0:00:12]} 5. O-O {[%emt 0:00:05]} d6 {[%emt 0:01:04]} 6. Re1 {[%emt 0:00:12]} Bd7 {[%emt 0:00:04]} 7. c3 {[%emt 0:00:14]} g6 {[%emt 0:00:05]} 8. d4 {[%emt 0:00:06]} Bg7 {[%emt 0:00:06]} 9. h3 {[%emt 0:00:56]} O-O {[%emt 0:01:43]} 10. Bc2 {[%emt 0:00:22]} Nh5 {[%emt 0:00:21]} 11. Be3 {[%emt 0:00:31]} Qe8 {[%emt 0:02:01]} 12. Nbd2 {[%emt 0:00:33]} Kh8 {[%emt 0:00:44]} 13. Nc4 {[%emt 0:01:12]} b5 {[%emt 0:09:48]} 14. Ncd2 {[%emt 0:00:05]} f5 {[%emt 0:00:19]} 15. dxe5 {[%emt 0:01:30]} f4 {[%emt 0:03:24]} 16. Bd4 {[%emt 0:00:05]} dxe5 {[%emt 0:00:30]} 17. Bc5 {[%emt 0:00:28]} Rf6 {[%emt 0:01:50]} 18. a4 {[%emt 0:02:22]} Rb8 {[%emt 0:09:17]} 19. axb5 {[%emt 0:07:11]} axb5 {[%emt 0:02:20]} 20. b4 {[%emt 0:00:05]} Bf8 {[%emt 0:09:22]} 21. Bxf8 {[%emt 0:16:12]} Rxf8 {[%emt 0:01:27]} 22. Bd3 {[%emt 0:04:38]} Nf6 {[%emt 0:17:28]} 23. Qe2 {[%emt 0:08:59]} Nd8 {[%emt 0:01:53]} 24. Nb3 {[%emt 0:00:04]} c6 {[%emt 0:05:31]} 25. Ra7 {[%emt 0:03:40]} Rf7 {[%emt 0:03:11]} 26. Nc5 {[%emt 0:07:16]} Bc8 {[%emt 0:02:59]} 27. Rea1 {[%emt 0:00:54]} Nd7 {[%emt 0:01:38]} 28. Na6 {[%emt 0:09:47]} Bxa6 {[%emt 0:02:22]} 29. R1xa6 {[%emt 0:00:29]} Nb6 {[%emt 0:00:48]} 30. c4 {[%emt 0:01:12]} Rxa7 {[%emt 0:02:47]} 31. Rxa7 {[%emt 0:00:04]} Nc8 {[%emt 0:04:54]} 32. Ra6 {[%emt 0:04:51]} bxc4 {[%emt 0:06:40]} 33. Bxc4 {[%emt 0:00:03]} Nd6 {[%emt 0:00:10]} 34. Ba2 {[%emt 0:02:04]} N8f7 {[%emt 0:03:37]} 35. Qc2 {[%emt 0:03:23]} Rxb4 {[%emt 0:01:25]} 36. Rxc6 {[%emt 0:01:43]} Rb8 {[%emt 0:04:35]} 37. Bd5 {[%emt 0:00:05]} Rd8 {[%emt 0:01:13]} 38. Qc5 {[%emt 0:03:17]} Kg7 {[%emt 0:00:38]} 39. Qc3 {[%emt 0:08:50]} Rd7 {[%emt 0:01:17]} 40. Rc5 {[%emt 0:03:48]} Re7 {[%emt 0:00:28]} 41. Qa1 {[%emt 0:35:32]} Qb8 {[%emt 0:05:32]} 42. Kh2 {[%emt 0:00:00]} Qb6 {[%emt 0:01:13]} 43. Qc3 {[%emt 0:00:00]} Qb8 {[%emt 0:00:38]} 44. Rc6 {[%emt 0:00:00]} Qe8 {[%emt 0:01:35]} 45. Qb4 {[%emt 0:00:00]} Qd8 {[%emt 0:01:44]} 46. Qa3 {[%emt 0:00:00]} Qb8 {[%emt 0:00:58]} 47. Bxf7 {[%emt 0:00:00]} 1-0